bitfinex/quotes_BTCUSD_20250109
["timestamp","ask_amount","ask_price","bid_price","bid_amount"]
[1736413025249,0.00023559,93165.0,93164.0,0.351775]
[1736413025597,0.00023559,93165.0,93164.0,0.348775]
[1736413026013,0.00023559,93165.0,93164.0,0.351775]
[1736413026213,0.00023559,93165.0,93164.0,0.342775]
[1736413026427,0.00023559,93165.0,93164.0,0.348775]
[1736413026626,0.00023559,93165.0,93164.0,0.357775]
[1736413026880,0.00023559,93165.0,93164.0,0.348775]
[1736413027232,0.00023559,93165.0,93164.0,0.357775]
[1736413027455,0.00023559,93165.0,93164.0,0.348775]
[1736413027648,0.00023559,93165.0,93164.0,0.342775]
[1736413027856,0.00023559,93165.0,93164.0,0.348775]
[1736413028437,0.00023559,93165.0,93164.0,0.342775]
[1736413028734,0.00023559,93165.0,93164.0,0.348775]
[1736413028953,0.00023559,93165.0,93164.0,0.357775]
[1736413029161,0.00023559,93165.0,93164.0,0.351775]
[1736413029763,0.00023559,93165.0,93164.0,0.348775]
[1736413030147,0.00023559,93165.0,93164.0,0.357775]
[1736413030777,0.00023559,93165.0,93164.0,0.0956]
[1736413031232,0.00023559,93165.0,93164.0,0.015]
[1736413031853,0.00023559,93165.0,93164.0,0.009]
[1736413032059,0.00023559,93165.0,93164.0,0.003]
[1736413032340,0.00023559,93165.0,93164.0,0.012]
[1736413032780,0.00023559,93165.0,93164.0,0.0831]
[1736413032983,0.00023559,93165.0,93164.0,0.09817326]
[1736413033729,0.00023559,93165.0,93164.0,0.08917326]
[1736413034180,0.00023559,93165.0,93164.0,0.0831]
[1736413034382,0.10453535,93165.0,93150.0,0.214705]
[1736413034595,0.10639427,93160.0,93145.0,0.0772]
[1736413034862,0.21069403,93160.0,93145.0,0.0772]
[1736413035013,0.214686,93159.0,93146.0,0.214716]
[1736413035425,0.21069403,93160.0,93146.0,0.214716]
[1736413035640,0.21069403,93160.0,93150.0,0.217706]
[1736413035848,0.25678808,93160.0,93150.0,0.217706]
[1736413036055,0.21069403,93160.0,93150.0,0.429412]
[1736413036274,0.10639427,93160.0,93150.0,0.429412]
[1736413036905,0.10639427,93160.0,93150.0,0.214706]
[1736413037106,0.214686,93159.0,93150.0,0.007]
[1736413037548,0.10639427,93160.0,93150.0,0.007]
[1736413037919,0.03311882,93159.0,93150.0,0.221706]
[1736413038030,0.10639427,93160.0,93150.0,0.007]
[1736413038238,0.214686,93159.0,93150.0,0.007]
[1736413038441,0.214686,93159.0,93146.0,0.217714]
[1736413038679,0.214691,93157.0,93150.0,0.007]
[1736413038905,0.21069403,93160.0,93150.0,0.009]
[1736413038906,0.214701,93153.0,93150.0,0.009]
[1736413039119,0.31900076,93153.0,93150.0,0.002]
[1736413039325,0.214705,93151.0,93150.0,0.007]
[1736413039583,0.37237534,93151.0,93150.0,0.007]
[1736413039781,0.214718,93146.0,93131.0,0.214749]
[1736413039987,0.10639427,93141.0,93131.0,0.214749]
[1736413040752,0.10639427,93141.0,93135.0,0.21474]
[1736413041333,0.10429976,93140.0,93123.0,0.214769]
[1736413041553,0.10639427,93133.0,93123.0,0.214769]
[1736413042577,0.10639427,93133.0,93123.0,0.216769]
[1736413042991,0.31904776,93132.0,93123.0,0.011]
[1736413043190,0.31904776,93132.0,93120.0,0.075]
[1736413043394,0.10429976,93132.0,93123.0,0.004]
[1736413043600,0.0640176,93131.0,93123.0,0.013]
[1736413043806,0.10429976,93130.0,93123.0,0.013]
[1736413044656,0.10639427,93133.0,93123.0,0.013]
[1736413044859,0.15,93139.0,93120.0,0.07550201]
[1736413045047,0.15,93137.0,93128.0,0.429513]
[1736413045248,0.10429976,93136.0,93128.0,0.429513]
[1736413045450,0.11640345,93140.0,93128.0,0.429513]
[1736413045652,0.11640345,93140.0,93128.0,0.214756]
[1736413046218,0.11640345,93140.0,93130.0,0.429506]
[1736413046452,0.11640345,93140.0,93130.0,0.214753]
[1736413048486,0.214732,93139.0,93130.0,0.214753]
[1736413048628,0.214732,93139.0,93124.0,0.429534]
[1736413048837,0.10639427,93134.0,93130.0,0.007]
[1736413049028,0.10639427,93140.0,93130.0,0.009]
[1736413049444,0.10639427,93140.0,93130.0,0.007]
[1736413049644,0.10639427,93140.0,93130.0,0.002]
[1736413050803,0.10639427,93140.0,93131.0,0.214751]
[1736413052260,0.10639427,93140.0,93131.0,0.216751]
[1736413052551,0.10639427,93140.0,93131.0,0.009]
[1736413052717,0.10639427,93140.0,93132.0,0.429496]
[1736413053443,0.10639427,93140.0,93131.0,0.009]
[1736413054384,0.010276,93142.0,93132.0,0.214748]
[1736413054827,0.214718,93146.0,93132.0,0.214748]
[1736413055252,0.214718,93146.0,93132.0,0.429496]
[1736413055664,0.0648,93148.0,93132.0,0.214748]
[1736413055871,0.214714,93147.0,93133.0,0.293946]
[1736413056241,0.214714,93147.0,93133.0,0.508692]
[1736413056826,0.214714,93147.0,93134.0,0.214744]
[1736413058098,0.214714,93147.0,93134.0,0.216744]
[1736413059202,0.214714,93147.0,93134.0,0.217744]
[1736413059437,0.214714,93147.0,93134.0,0.432487]
[1736413059645,0.214714,93147.0,93134.0,0.217743]
[1736413060181,0.214723,93143.0,93134.0,0.217743]
[1736413060391,0.02502846,93143.0,93134.0,0.003]
[1736413060590,0.10342846,93143.0,93134.0,0.003]
[1736413061068,0.10342846,93143.0,93134.0,0.002]
[1736413061290,0.10342846,93143.0,93134.0,0.001]
[1736413061291,0.42945,93142.0,93134.0,0.001]
[1736413061488,0.214725,93142.0,93134.0,0.001]
[1736413061715,0.214728,93141.0,93134.0,0.004]
[1736413061894,0.214728,93141.0,93134.0,0.003]
[1736413062114,0.214728,93141.0,93129.0,0.214755]
[1736413062383,0.21473,93140.0,93134.0,0.003]
[1736413062785,0.21473,93140.0,93134.0,0.001]
[1736413063807,0.214725,93142.0,93134.0,0.001]
[1736413063981,0.214725,93142.0,93134.0,0.004]
[1736413064184,0.214714,93147.0,93134.0,0.004]
[1736413064185,0.15,93147.0,93135.0,0.214741]
[1736413064387,0.15,93145.0,93134.0,0.001]
[1736413064585,0.214721,93144.0,93134.0,0.001]
[1736413064750,0.21473,93140.0,93134.0,0.005]
[1736413064957,0.42946,93140.0,93127.0,0.214759]
[1736413065194,0.42946,93140.0,93134.0,0.001]
[1736413065371,0.15,93145.0,93135.0,0.002]
[1736413065372,0.214725,93143.0,93135.0,0.002]
[1736413065578,0.214725,93143.0,93132.0,0.214748]
[1736413065748,0.214715,93147.0,93128.0,0.0809]
[1736413065949,0.214715,93147.0,93134.0,0.006]
[1736413067361,0.214708,93150.0,93135.0,0.214742]
[1736413067530,0.214701,93153.0,93140.0,0.21473]
[1736413067768,0.07520727,93155.0,93137.0,0.049]
[1736413067944,0.07520727,93155.0,93144.0,0.21472]
[1736413068305,0.01040727,93155.0,93144.0,0.21472]
[1736413068503,0.214693,93157.0,93144.0,0.21472]
[1736413069294,0.429386,93157.0,93144.0,0.21472]
[1736413069513,0.214693,93157.0,93144.0,0.21472]
[1736413069717,8.52e-05,93165.0,93150.0,0.0783]
[1736413069924,0.214685,93160.0,93150.0,0.0783]
[1736413070411,0.001,93155.0,93146.0,0.214715]
[1736413070615,0.42937,93160.0,93146.0,0.214715]
[1736413070962,0.214686,93159.0,93143.0,0.214722]
[1736413071377,0.214691,93157.0,93143.0,0.214722]
[1736413071565,0.214691,93157.0,93146.0,0.004]
[1736413072025,0.214691,93157.0,93146.0,0.001]
[1736413072433,0.214691,93157.0,93143.0,0.216722]
[1736413073487,0.214691,93157.0,93143.0,0.214722]
[1736413073728,0.214691,93157.0,93146.0,0.003]
[1736413074130,0.214691,93157.0,93143.0,0.215722]
[1736413074309,0.214691,93157.0,93143.0,0.217722]
[1736413074481,0.214691,93157.0,93143.0,0.214722]
[1736413074687,0.214691,93157.0,93143.0,0.215722]
[1736413074890,0.29356112,93156.0,93146.0,0.003]
[1736413075085,0.214717,93146.0,93143.0,0.001]
[1736413075517,0.214707,93150.0,93143.0,0.004]
[1736413076770,0.214707,93150.0,93143.0,0.001]
[1736413076940,0.214707,93150.0,93146.0,0.003]
[1736413077244,0.2726472,93150.0,93146.0,0.001]
[1736413077586,0.46132976,93149.0,93146.0,0.001]
[1736413077745,0.214721,93144.0,93143.0,0.004]
[1736413077941,0.214742,93135.0,93126.0,0.0793]
[1736413078615,0.0429476,93134.0,93126.0,0.0793]
[1736413079334,0.214742,93135.0,93126.0,0.0793]
[1736413079540,0.214734,93139.0,93126.0,0.0793]
[1736413079859,0.214734,93139.0,93127.0,0.21476]
[1736413080780,0.214734,93139.0,93126.0,0.0923]
[1736413080980,0.214743,93135.0,93126.0,0.0923]
[1736413081115,0.214743,93135.0,93126.0,0.0883]
[1736413081319,0.214743,93135.0,93127.0,0.003]
[1736413081534,0.214752,93131.0,93127.0,0.003]
[1736413081730,0.2576907,93135.0,93127.0,0.012]
[1736413082354,0.214753,93130.0,93127.0,0.009]
[1736413082761,0.214748,93133.0,93127.0,0.009]
[1736413083069,0.214748,93133.0,93120.0,0.291275]
[1736413083279,0.214748,93133.0,93126.0,0.009]
[1736413083482,0.214748,93133.0,93120.0,0.29177701]
[1736413083912,0.214748,93133.0,93127.0,0.006]
[1736413084110,0.214748,93133.0,93126.0,0.004]
[1736413084467,0.214748,93133.0,93126.0,0.006]
[1736413085301,0.214748,93133.0,93120.0,0.29377701]
[1736413085664,0.214748,93133.0,93120.0,0.29177701]
[1736413085862,0.27992863,93133.0,93120.0,0.29177701]
[1736413086067,0.49467663,93133.0,93126.0,0.002]
[1736413086300,0.429496,93133.0,93126.0,0.002]
[1736413086706,0.22516526,93139.0,93126.0,0.002]
[1736413086707,0.429511,93129.0,93126.0,0.002]
[1736413086968,0.429511,93129.0,93127.0,0.006]
[1736413087111,0.429511,93129.0,93126.0,0.002]
[1736413087498,0.429511,93129.0,93126.0,0.006]
[1736413087499,0.214755,93129.0,93126.0,0.006]
[1736413087753,0.214748,93133.0,93126.0,0.002]
[1736413087962,0.214748,93133.0,93121.0,0.214774]
[1736413088160,0.214748,93133.0,93126.0,0.006]
[1736413088415,0.214748,93133.0,93121.0,0.214774]
[1736413088964,0.214748,93133.0,93126.0,0.006]
[1736413089581,0.429496,93133.0,93126.0,0.007]
[1736413089789,0.214748,93133.0,93126.0,0.007]
[1736413089996,0.214748,93133.0,93120.0,0.07700201]
[1736413090170,0.214748,93133.0,93126.0,0.004]
[1736413090597,0.214748,93133.0,93121.0,0.214774]
[1736413090811,0.214748,93133.0,93126.0,0.004]
[1736413091452,0.214748,93133.0,93126.0,0.001]
[1736413091655,0.15,93136.0,93126.0,0.001]
[1736413091838,0.15,93134.0,93126.0,0.001]
[1736413092040,0.15,93134.0,93122.0,0.214772]
[1736413092519,0.15,93134.0,93126.0,0.001]
[1736413092941,0.15,93135.0,93126.0,0.21476]
[1736413093479,0.15,93135.0,93126.0,0.21876]
[1736413093927,0.15,93135.0,93126.0,0.21476]
[1736413094168,0.15,93135.0,93130.0,0.214753]
[1736413094765,0.15,93135.0,93127.0,0.21476]
[1736413095172,0.15,93137.0,93127.0,0.21476]
[1736413095754,0.15,93137.0,93130.0,0.001]
[1736413096147,0.15,93137.0,93127.0,0.21476]
[1736413096706,0.15,93137.0,93127.0,0.21576]
[1736413096998,0.15,93137.0,93130.0,0.003]
[1736413097301,0.15,93137.0,93127.0,0.21576]
[1736413097646,0.15,93137.0,93127.0,0.21776]
[1736413097852,0.214739,93136.0,93127.0,0.001]
[1736413098056,0.15,93135.0,93126.0,0.214762]
[1736413098341,0.15,93135.0,93130.0,0.003]
[1736413098490,0.15,93135.0,93130.0,0.001]
[1736413098900,0.15,93135.0,93126.0,0.214762]
[1736413099311,0.15,93137.0,93128.0,0.214758]
[1736413100038,0.15,93137.0,93130.0,0.001]
[1736413100855,0.15,93137.0,93130.0,0.004]
[1736413101074,0.15,93135.0,93130.0,0.004]
[1736413101276,0.15,93135.0,93126.0,0.214762]
[1736413101483,0.15,93135.0,93130.0,0.002]
[1736413102080,0.15,93137.0,93130.0,0.002]
[1736413102341,0.15,93137.0,93130.0,0.214752]
[1736413102540,0.15,93137.0,93126.0,0.215762]
[1736413102712,0.15,93137.0,93130.0,0.003]
[1736413102918,0.364739,93137.0,93130.0,0.003]
[1736413103334,0.364739,93137.0,93130.0,0.004]
[1736413104531,0.364739,93137.0,93130.0,0.001]
[1736413104755,0.364739,93137.0,93130.0,0.003]
[1736413108665,0.579478,93137.0,93130.0,0.003]
[1736413108844,0.15,93135.0,93130.0,0.003]
[1736413109758,0.15,93135.0,93130.0,0.002]
[1736413109967,0.15,93135.0,93130.0,0.003]
[1736413110633,0.214744,93134.0,93130.0,0.003]
[1736413111491,0.214744,93134.0,93123.0,0.214767]
[1736413111705,0.15,93135.0,93124.0,0.214767]
[1736413111915,0.15,93135.0,93130.0,0.001]
[1736413112112,0.15,93135.0,93130.0,0.004]
[1736413112313,0.15,93135.0,93130.0,0.003]
[1736413112530,0.15,93135.0,93124.0,0.214767]
[1736413114339,0.214744,93134.0,93124.0,0.214767]
[1736413114893,0.214744,93134.0,93130.0,0.001]
[1736413115099,0.214744,93134.0,93124.0,0.214767]
[1736413115531,0.214744,93134.0,93124.0,0.215767]
[1736413115715,0.214744,93134.0,93124.0,0.214767]
[1736413116143,0.214744,93134.0,93130.0,0.001]
[1736413116448,0.214744,93134.0,93124.0,0.214767]
[1736413116678,0.214744,93134.0,93124.0,0.215767]
[1736413117438,0.15,93135.0,93124.0,0.215767]
[1736413118454,0.15,93135.0,93124.0,0.214767]
[1736413118624,0.15,93135.0,93124.0,0.215767]
[1736413119033,0.15,93138.0,93124.0,0.215767]
[1736413119257,0.15,93136.0,93124.0,0.215767]
[1736413119458,0.15,93136.0,93125.0,0.214765]
[1736413119704,0.15,93134.0,93125.0,0.214765]
[1736413120284,0.214746,93133.0,93122.0,0.214771]
[1736413121006,0.15,93134.0,93122.0,0.214771]
[1736413121570,0.15,93134.0,93123.0,0.214769]
[1736413123297,0.15,93134.0,93123.0,0.31410219]
[1736413123831,0.15,93139.0,93128.0,0.214757]
[1736413124243,0.15,93137.0,93123.0,0.31410219]
[1736413124444,0.15,93139.0,93126.0,0.0482]
[1736413124773,0.579465,93139.0,93126.0,0.0482]
[1736413125185,0.364732,93139.0,93127.0,0.21476]
[1736413125785,0.364732,93139.0,93126.0,0.0482]
[1736413126415,0.15,93134.0,93126.0,0.0482]
[1736413126616,0.15,93134.0,93126.0,0.14453319]
[1736413127690,0.15,93134.0,93126.0,0.0482]
[1736413128393,0.15,93134.0,93126.0,0.0502]
[1736413128813,0.15,93134.0,93126.0,0.0512]
[1736413129135,0.15,93134.0,93126.0,0.0502]
[1736413129570,0.15,93134.0,93126.0,0.0512]
[1736413130724,0.214726,93142.0,93127.0,0.214759]
[1736413130961,0.214726,93142.0,93129.0,0.214755]
[1736413131296,0.15,93139.0,93129.0,0.214755]
[1736413132418,0.15,93141.0,93129.0,0.214755]
[1736413132644,0.15,93139.0,93129.0,0.217755]
[1736413132822,0.15,93139.0,93129.0,0.218755]
[1736413133453,0.15,93139.0,93129.0,0.217755]
[1736413133851,0.15,93137.0,93129.0,0.003]
[1736413134226,0.15,93137.0,93128.0,0.0763]
[1736413134624,0.15,93137.0,93129.0,0.002]
[1736413134825,0.15,93137.0,93128.0,0.0763]
[1736413135073,0.15,93137.0,93129.0,0.001]
[1736413135223,0.15,93137.0,93129.0,0.002]
[1736413135431,0.15,93137.0,93128.0,0.0763]
[1736413135858,0.15,93137.0,93129.0,0.001]
[1736413136055,0.15,93137.0,93128.0,0.0763]
[1736413137511,0.15,93137.0,93129.0,0.001]
[1736413137736,0.15,93137.0,93128.0,0.0763]
[1736413137737,0.214742,93135.0,93128.0,0.0763]
[1736413137941,0.06543857,93137.0,93128.0,0.001]
[1736413138886,0.21475,93132.0,93123.0,0.09633319]
[1736413139115,0.21475,93132.0,93128.0,0.002]
[1736413139323,0.21475,93132.0,93123.0,0.09633319]
[1736413139530,0.25746406,93132.0,93123.0,0.09633319]
[1736413139732,0.04271406,93132.0,93123.0,0.09633319]
[1736413139940,0.214744,93134.0,93123.0,0.09633319]
[1736413140161,0.15,93137.0,93124.0,0.214767]
[1736413140369,0.01024068,93143.0,93127.0,0.0466]
[1736413140574,0.14452147,93144.0,93130.0,0.0755]
[1736413140785,0.14452147,93144.0,93132.0,0.0755]
[1736413140986,0.14452147,93144.0,93129.0,0.0466]
[1736413140987,0.14452147,93144.0,93134.0,0.0806]
[1736413141165,0.14452147,93144.0,93142.0,0.0806]
[1736413141415,0.214686,93160.0,93143.0,0.214723]
[1736413142443,0.15,93157.0,93143.0,0.214723]
[1736413143294,0.214693,93156.0,93143.0,0.001]
[1736413143496,0.214716,93147.0,93143.0,0.001]
[1736413143709,0.429432,93147.0,93143.0,0.001]
[1736413143919,0.214718,93145.0,93143.0,0.001]
[1736413144122,0.10429976,93144.0,93143.0,0.001]
[1736413144298,0.33392355,93144.0,93143.0,0.001]
[1736413144741,0.33392355,93144.0,93143.0,0.006]
[1736413145145,0.214741,93136.0,93125.0,0.09633319]
[1736413145718,0.214741,93136.0,93120.0,0.0968352]
[1736413146713,0.214741,93136.0,93128.0,0.0784]
[1736413148164,0.214741,93136.0,93128.0,0.0814]
[1736413148548,0.214741,93136.0,93128.0,0.0784]
[1736413148731,0.214741,93136.0,93128.0,0.0804]
[1736413148926,0.214741,93136.0,93128.0,0.0794]
[1736413149350,0.2576885,93136.0,93128.0,0.0804]
[1736413151616,0.214741,93136.0,93128.0,0.0804]
[1736413151824,0.15,93136.0,93128.0,0.003]
[1736413152236,0.214682,93161.0,93129.0,0.0802]
[1736413152451,0.01067425,93154.0,93145.0,0.214717]
[1736413152656,0.14452147,93151.0,93141.0,0.214727]
[1736413153495,0.22510527,93156.0,93141.0,0.214727]
[1736413154677,0.22510527,93156.0,93133.0,0.09633319]
[1736413154678,0.35431,93148.0,93134.0,0.214744]
[1736413155106,0.03221,93148.0,93134.0,0.214744]
[1736413155322,0.214705,93151.0,93139.0,0.214732]
[1736413155452,0.21468,93162.0,93144.0,0.214719]
[1736413155640,0.214684,93160.0,93145.0,0.0829]
[1736413155836,0.15,93159.0,93145.0,0.0829]
[1736413156081,0.214684,93160.0,93145.0,0.0829]
[1736413156286,0.15,93158.0,93145.0,0.0829]
[1736413157085,0.214691,93157.0,93145.0,0.0829]
[1736413157287,0.15,93159.0,93146.0,0.214716]
[1736413157503,0.15,93159.0,93145.0,0.0829]
[1736413157504,0.214689,93158.0,93145.0,0.0829]
[1736413158136,0.214689,93158.0,93146.0,0.214716]
[1736413158343,0.15,93159.0,93146.0,0.214716]
[1736413158478,0.214689,93158.0,93145.0,0.0829]
[1736413158887,0.214689,93158.0,93146.0,0.214716]
[1736413159094,0.15,93159.0,93146.0,0.214716]
[1736413159498,0.214682,93161.0,93146.0,0.214716]
[1736413159704,0.15,93160.0,93146.0,0.214716]
[1736413160106,0.15,93158.0,93150.0,0.214705]
[1736413160314,0.01065024,93163.0,93150.0,0.0476]
[1736413160514,8.52e-05,93165.0,93151.0,0.214705]
[1736413160739,0.214686,93160.0,93145.0,0.0829]
[1736413161259,5.013e-05,93160.0,93145.0,0.0829]
[1736413161456,5.013e-05,93160.0,93147.0,0.214712]
[1736413161876,0.15,93159.0,93147.0,0.214712]
[1736413165439,5.013e-05,93160.0,93147.0,0.215712]
[1736413165648,5.013e-05,93160.0,93147.0,0.430426]
[1736413165823,5.013e-05,93160.0,93147.0,0.429426]
[1736413166026,5.013e-05,93160.0,93147.0,0.430426]
[1736413167038,5.013e-05,93160.0,93147.0,0.214712]
[1736413168002,0.15,93159.0,93147.0,0.214712]
[1736413169160,5.013e-05,93160.0,93145.0,0.0829]
[1736413169306,5.013e-05,93160.0,93148.0,0.429422]
[1736413170477,5.013e-05,93160.0,93148.0,0.21471]
[1736413172437,0.15,93159.0,93148.0,0.21471]
[1736413172835,0.15,93159.0,93148.0,0.21571]
[1736413173648,5.013e-05,93160.0,93148.0,0.21671]
[1736413173866,0.15,93159.0,93148.0,0.21671]
[1736413174626,0.13719102,93160.0,93148.0,0.21671]
[1736413174836,0.214677,93163.0,93148.0,0.21671]
[1736413175056,0.23718482,93163.0,93148.0,0.21676013]
[1736413175260,0.23718482,93163.0,93148.0,0.21576013]
[1736413175455,0.214685,93160.0,93148.0,0.21576013]
[1736413175679,0.214685,93160.0,93148.0,0.21476013]
[1736413176137,0.214685,93160.0,93148.0,0.21676013]
[1736413176362,0.214685,93160.0,93148.0,0.21476013]
[1736413176726,0.0815,93161.0,93148.0,0.00105013]
[1736413177824,0.214691,93157.0,93148.0,0.00105013]
[1736413178018,0.214679,93162.0,93148.0,0.00105013]
[1736413178305,0.10429976,93162.0,93148.0,0.00105013]
[1736413178724,0.10429976,93162.0,93148.0,5.013e-05]
[1736413178924,0.214691,93157.0,93148.0,0.00105013]
[1736413179273,0.214691,93157.0,93148.0,5.013e-05]
[1736413180173,0.214691,93157.0,93148.0,0.00305013]
[1736413181723,0.2147,93153.0,93148.0,0.00305013]
[1736413182000,0.214705,93151.0,93148.0,0.00305013]
[1736413182216,0.214709,93149.0,93148.0,0.00305013]
[1736413182435,0.31900876,93149.0,93148.0,0.00305013]
[1736413182655,0.31900876,93149.0,93148.0,5.013e-05]
[1736413182854,0.39680876,93149.0,93148.0,0.00405013]
[1736413183066,0.39680876,93149.0,93148.0,0.00505013]
[1736413183269,0.39680876,93149.0,93148.0,0.00105013]
[1736413183468,0.39680876,93149.0,93148.0,5.013e-05]
[1736413183667,0.39680876,93149.0,93148.0,0.00205013]
[1736413183872,0.48441014,93149.0,93148.0,5.013e-05]
[1736413184101,0.63441014,93149.0,93148.0,5.013e-05]
[1736413184284,0.69889014,93149.0,93148.0,5.013e-05]
[1736413184838,0.69889014,93149.0,93148.0,0.00105013]
[1736413185266,0.69889014,93149.0,93148.0,0.00305013]
[1736413185465,0.69889014,93149.0,93148.0,5.013e-05]
[1736413187960,0.6449058,93149.0,93148.0,5.013e-05]
[1736413188674,0.5441058,93149.0,93148.0,5.013e-05]
[1736413188852,0.22509704,93149.0,93148.0,5.013e-05]
[1736413189453,0.214699,93154.0,93148.0,5.013e-05]
[1736413189454,0.06452,93153.0,93148.0,5.013e-05]
[1736413191974,0.01034529,93156.0,93149.0,0.214709]
[1736413192164,0.15,93161.0,93149.0,0.214709]
[1736413192846,0.15,93161.0,93148.0,5.013e-05]
[1736413192847,0.15,93161.0,93153.0,0.214699]
[1736413193416,0.01068866,93162.0,93153.0,0.214699]
[1736413193613,0.06452,93164.0,93153.0,0.214699]
[1736413193939,8.52e-05,93165.0,93153.0,0.214699]
[1736413195294,8.52e-05,93165.0,93150.0,0.0772]
[1736413195539,8.52e-05,93165.0,93160.0,0.0772]
[1736413197124,8.52e-05,93165.0,93161.0,0.214682]
[1736413197326,8.52e-05,93165.0,93160.0,0.0772]
[1736413197504,8.52e-05,93165.0,93161.0,0.214682]
[1736413199026,8.52e-05,93165.0,93161.0,0.429364]
[1736413199247,8.52e-05,93165.0,93159.0,0.0455]
[1736413199248,8.52e-05,93165.0,93163.0,0.294977]
[1736413200278,8.52e-05,93165.0,93163.0,0.294467]
[1736413200479,8.52e-05,93165.0,93164.0,0.18067306]
[1736413201799,8.52e-05,93165.0,93164.0,0.22907306]
[1736413202005,8.52e-05,93165.0,93164.0,0.22799976]
[1736413203192,8.52e-05,93165.0,93164.0,0.87279976]
[1736413203391,8.52e-05,93165.0,93164.0,1.12279976]
[1736413203792,8.52e-05,93165.0,93164.0,1.13079976]
[1736413204195,8.52e-05,93165.0,93164.0,1.13379976]
[1736413204820,8.52e-05,93165.0,93164.0,1.4879968]
[1736413205022,8.52e-05,93165.0,93164.0,1.1379968]
[1736413205236,8.52e-05,93165.0,93164.0,1.1299968]
[1736413205434,8.52e-05,93180.0,93164.0,1.1299968]
[1736413205435,8.52e-05,93180.0,93171.0,0.214658]
[1736413205649,8.52e-05,93180.0,93165.0,0.214672]
[1736413205650,0.01055464,93180.0,93165.0,0.214672]
[1736413205860,8.52e-05,93180.0,93170.0,0.21466]
[1736413206684,8.52e-05,93180.0,93171.0,0.009]
[1736413206890,8.52e-05,93180.0,93165.0,0.214672]
[1736413207260,0.15,93179.0,93169.0,0.214662]
[1736413207674,0.15,93179.0,93170.0,0.001]
[1736413208436,0.01078234,93183.0,93170.0,0.005]
[1736413208660,0.31893276,93182.0,93170.0,0.001]
[1736413209065,0.31893276,93182.0,93170.0,0.005]
[1736413209286,0.31893276,93182.0,93165.0,0.214672]
[1736413209450,0.31893276,93182.0,93169.0,0.002]
[1736413209647,0.214636,93181.0,93170.0,0.003]
[1736413209920,0.214636,93181.0,93169.0,0.002]
[1736413210116,0.214636,93181.0,93165.0,0.214672]
[1736413210313,0.214636,93181.0,93170.0,0.004]
[1736413210896,0.31893276,93182.0,93170.0,0.004]
[1736413211111,0.10429976,93182.0,93171.0,0.0218672]
[1736413211538,0.10429976,93182.0,93170.0,0.214659]
[1736413211765,0.01082549,93186.0,93174.0,0.21465]
[1736413212072,8.52e-05,93193.0,93173.0,0.214654]
[1736413212235,8.52e-05,93193.0,93183.0,0.21463]
[1736413212445,8.52e-05,93193.0,93172.0,0.0496]
[1736413212652,8.52e-05,93193.0,93181.0,0.214635]
[1736413213257,8.52e-05,93193.0,93186.0,0.214623]
[1736413213457,0.00021443,93188.0,93186.0,0.292523]
[1736413213659,0.00021443,93188.0,93186.0,0.0779]
[1736413215397,0.00021443,93188.0,93186.0,0.0799]
[1736413217022,0.00021443,93188.0,93186.0,0.002]
[1736413217187,0.00021443,93188.0,93186.0,0.003]
[1736413218015,0.214622,93187.0,93186.0,0.003]
[1736413218554,0.23466583,93187.0,93186.0,0.003]
[1736413219172,0.23466583,93187.0,93172.0,0.295156]
[1736413219575,0.23466583,93187.0,93186.0,0.003]
[1736413220165,0.214622,93187.0,93186.0,0.003]
[1736413220545,0.194622,93187.0,93186.0,0.003]
[1736413220746,0.29892176,93187.0,93186.0,0.002]
[1736413221173,0.29892176,93187.0,93172.0,0.001]
[1736413221383,0.10429976,93186.0,93172.0,0.001]
[1736413221589,0.21465,93175.0,93172.0,0.003]
[1736413221795,0.21464,93179.0,93172.0,0.001]
[1736413222413,0.02007159,93178.0,93164.0,0.214674]
[1736413222614,0.214645,93177.0,93164.0,0.214674]
[1736413222873,0.214645,93177.0,93172.0,0.003]
[1736413223060,0.214645,93177.0,93164.0,0.214674]
[1736413223573,0.214645,93177.0,93164.0,0.215674]
[1736413223787,0.02007159,93176.0,93164.0,0.215674]
[1736413224424,0.21466,93171.0,93162.0,0.0795]
[1736413224581,0.32939976,93173.0,93172.0,0.002]
[1736413224759,0.214679,93163.0,93151.0,0.214704]
[1736413225169,0.10429976,93162.0,93145.0,0.083]
[1736413225381,0.12437135,93162.0,93146.0,0.429432]
[1736413225789,0.214683,93161.0,93146.0,0.429432]
[1736413225996,0.31898276,93161.0,93146.0,0.429432]
[1736413226484,0.31898276,93161.0,93147.0,0.214714]
[1736413226485,0.214684,93160.0,93147.0,0.214714]
[1736413226697,0.23475559,93160.0,93147.0,0.214714]
[1736413227104,0.23475559,93160.0,93145.0,0.299718]
[1736413227314,0.214697,93155.0,93146.0,0.001]
[1736413227733,0.214697,93155.0,93146.0,0.00105013]
[1736413227919,0.214697,93155.0,93146.0,0.00305013]
[1736413228105,0.27111205,93155.0,93146.0,0.00305013]
[1736413228675,0.214706,93151.0,93146.0,0.00305013]
[1736413228903,0.214706,93151.0,93146.0,0.00105013]
[1736413229463,0.53371176,93151.0,93146.0,0.00705013]
[1736413229666,0.53371176,93151.0,93147.0,0.001]
[1736413229667,0.214709,93149.0,93147.0,0.001]
[1736413230068,0.214709,93149.0,93146.0,0.00705013]
[1736413230480,0.214709,93149.0,93146.0,0.00905013]
[1736413230694,0.214709,93149.0,93146.0,0.00205013]
[1736413231154,0.02007159,93148.0,93146.0,0.00705013]
[1736413231412,0.02007159,93148.0,93146.0,0.00205013]
[1736413231828,0.02007159,93148.0,93146.0,0.00905013]